[Event "Late-Titled-Tuesday-Blitz-February-27-2024"]
[Site "Chess.com"]
[Date "2024.02.27"]
[Round "8"]
[White "manitodeplomo"]
[Black "DeArron_Fox"]
[Result "1-0"]
[WhiteElo "2666"]
[BlackElo "2482"]
[TimeControl "180+1"]
[EndTime "15:26:52 PST"]
[Termination "manitodeplomo won on time"]

1. d4 {[%clk 0:03:00.9]} 1... d5 {[%clk 0:02:38]} 2. c4 {[%clk 0:02:59.8]} 2...
e6 {[%clk 0:02:35.9]} 3. Nf3 {[%clk 0:02:59.4]} 3... Nf6 {[%clk 0:02:33.3]} 4.
Nc3 {[%clk 0:02:59.6]} 4... Be7 {[%clk 0:02:33.8]} 5. Bg5 {[%clk 0:02:59.2]}
5... O-O {[%clk 0:02:34.3]} 6. Qc2 {[%clk 0:02:59.3]} 6... h6 {[%clk 0:02:34.7]}
7. Bxf6 {[%clk 0:02:59.2]} 7... Bxf6 {[%clk 0:02:35.6]} 8. O-O-O {[%clk
0:02:59.4]} 8... a6 {[%clk 0:02:16.2]} 9. e4 {[%clk 0:02:47.6]} 9... dxe4 {[%clk
0:01:42.4]} 10. Qxe4 {[%clk 0:02:45.3]} 10... c5 {[%clk 0:01:25]} 11. h4 {[%clk
0:02:38.4]} 11... Nc6 {[%clk 0:00:31.8]} 12. Bd3 {[%clk 0:02:28.4]} 12... g6
{[%clk 0:00:13.5]} 13. h5 {[%clk 0:02:25.7]} 13... cxd4 {[%clk 0:00:13.2]} 14.
hxg6 {[%clk 0:02:23.8]} 14... dxc3 {[%clk 0:00:12.2]} 15. g7 {[%clk 0:02:24]}
15... Bg5+ {[%clk 0:00:04.8]} 16. Kb1 {[%clk 0:02:12.7]} 16... Kxg7 {[%clk
0:00:04.5]} 17. Qh7+ {[%clk 0:01:31.1]} 17... Kf6 {[%clk 0:00:04.6]} 18. Nxg5
{[%clk 0:01:31.1]} 18... hxg5 {[%clk 0:00:05.5]} 19. Qh6+ {[%clk 0:01:30.8]}
19... Ke7 {[%clk 0:00:05.9]} 20. Qxg5+ {[%clk 0:01:30.6]} 20... Ke8 {[%clk
0:00:04.6]} 21. Qg7 {[%clk 0:01:27.7]} 21... cxb2 {[%clk 0:00:02.9]} 22. Rh8
{[%clk 0:00:59.1]} 22... Qe7 {[%clk 0:00:03.4]} 23. Rdh1 {[%clk 0:00:57.2]}
23... Bd7 {[%clk 0:00:01.9]} 24. Rxf8+ {[%clk 0:00:56.7]} 24... Qxf8 {[%clk
0:00:02.8]} 25. Rh8 {[%clk 0:00:56.7]} 25... Ke7 {[%clk 0:00:03.7]} 26. Rxf8
{[%clk 0:00:55.2]} 26... Rxf8 {[%clk 0:00:04.6]} 27. Kxb2 {[%clk 0:00:45.7]}
27... Rd8 {[%clk 0:00:02.1]} 28. Be4 {[%clk 0:00:41.8]} 28... Be8 {[%clk
0:00:02.1]} 29. g4 {[%clk 0:00:41.5]} 29... Kd7 {[%clk 0:00:01.7]} 30. g5 {[%clk
0:00:40.7]} 30... Kc7 {[%clk 0:00:02.1]} 31. Kc3 {[%clk 0:00:37]} 31... Rd7
{[%clk 0:00:02]} 32. Qf8 {[%clk 0:00:33.5]} 32... Rd8 {[%clk 0:00:01.4]} 33. f4
{[%clk 0:00:31.4]} 1-0

[Event "Late-Titled-Tuesday-Blitz-February-27-2024"]
[Site "Chess.com"]
[Date "2024.02.27"]
[Round "8"]
[White "OneTrickPony_82"]
[Black "grzechu96"]
[Result "0-1"]
[WhiteElo "2530"]
[BlackElo "2743"]
[TimeControl "180+1"]
[EndTime "15:26:59 PST"]
[Termination "grzechu96 won by resignation"]

1. d4 {[%clk 0:03:00.9]} 1... d5 {[%clk 0:02:58.3]} 2. c4 {[%clk 0:03:00.9]}
2... e6 {[%clk 0:02:40.5]} 3. Nf3 {[%clk 0:03:00.7]} 3... c6 {[%clk 0:02:40.8]}
4. e3 {[%clk 0:03:00.1]} 4... Bd6 {[%clk 0:02:40.5]} 5. b3 {[%clk 0:02:56.7]}
5... f5 {[%clk 0:02:39.9]} 6. Be2 {[%clk 0:02:56]} 6... Nf6 {[%clk 0:02:40.2]}
7. O-O {[%clk 0:02:56]} 7... Qe7 {[%clk 0:02:40.9]} 8. a4 {[%clk 0:02:55.9]}
8... b6 {[%clk 0:02:26.6]} 9. Ba3 {[%clk 0:02:55.2]} 9... c5 {[%clk 0:02:25.4]}
10. Nc3 {[%clk 0:02:47.1]} 10... Bb7 {[%clk 0:02:19]} 11. Nb5 {[%clk 0:02:40.2]}
11... O-O {[%clk 0:02:17.1]} 12. cxd5 {[%clk 0:02:29.8]} 12... Bxd5 {[%clk
0:02:17]} 13. Rc1 {[%clk 0:02:21.2]} 13... Nbd7 {[%clk 0:02:15.2]} 14. Nxd6
{[%clk 0:02:09.3]} 14... Qxd6 {[%clk 0:02:16.1]} 15. dxc5 {[%clk 0:02:08.6]}
15... Nxc5 {[%clk 0:02:11.1]} 16. Nd4 {[%clk 0:02:05]} 16... Rac8 {[%clk
0:02:07.9]} 17. Nb5 {[%clk 0:01:54.8]} 17... Qe7 {[%clk 0:02:07.8]} 18. Qd4
{[%clk 0:01:41.1]} 18... Rfd8 {[%clk 0:02:01.9]} 19. Bxc5 {[%clk 0:01:37]} 19...
bxc5 {[%clk 0:02:02.3]} 20. Qb2 {[%clk 0:01:33.7]} 20... Qb7 {[%clk 0:02:00.4]}
21. Bc4 {[%clk 0:01:14.6]} 21... Bxg2 {[%clk 0:01:39.8]} 22. Bxe6+ {[%clk
0:01:14.3]} 22... Kh8 {[%clk 0:01:40.3]} 23. Bxc8 {[%clk 0:01:14.5]} 23... Rxc8
{[%clk 0:01:31.7]} 24. f3 {[%clk 0:00:56.5]} 24... Bxf1 {[%clk 0:01:29.5]} 25.
Nd6 {[%clk 0:00:49.8]} 25... Qxf3 {[%clk 0:01:25.6]} 26. Nxc8 {[%clk 0:00:46.5]}
26... Ba6 {[%clk 0:01:25.6]} 27. Qf2 {[%clk 0:00:30.2]} 27... Qxf2+ {[%clk
0:01:19.8]} 28. Kxf2 {[%clk 0:00:29.8]} 28... Bxc8 {[%clk 0:01:20.7]} 29. Kf3
{[%clk 0:00:23.8]} 29... Ne4 {[%clk 0:01:13.6]} 30. Kf4 {[%clk 0:00:21.8]} 30...
Kg8 {[%clk 0:01:04.6]} 31. b4 {[%clk 0:00:17.7]} 31... Kf7 {[%clk 0:01:04.8]}
32. bxc5 {[%clk 0:00:17.4]} 32... Ke6 {[%clk 0:01:05.5]} 33. c6 {[%clk
0:00:15.5]} 33... g5+ {[%clk 0:01:05.7]} 34. Kf3 {[%clk 0:00:14.5]} 34... Kd6
{[%clk 0:01:02.7]} 35. c7 {[%clk 0:00:14.1]} 35... Nc5 {[%clk 0:01:02.3]} 36. a5
{[%clk 0:00:11.9]} 36... Ne6 {[%clk 0:00:59.8]} 37. Ke2 {[%clk 0:00:07.8]} 37...
Nxc7 {[%clk 0:01:00.1]} 38. Rd1+ {[%clk 0:00:07.4]} 38... Nd5 {[%clk 0:00:58.8]}
39. Rc1 {[%clk 0:00:06.1]} 39... Ba6+ {[%clk 0:00:58.4]} 40. Kf3 {[%clk
0:00:05.3]} 40... Ne7 {[%clk 0:00:52.4]} 41. Rc3 {[%clk 0:00:04.8]} 41... Nc6
{[%clk 0:00:52.1]} 42. Ra3 {[%clk 0:00:04.5]} 42... Ne5+ {[%clk 0:00:49.6]} 43.
Kf2 {[%clk 0:00:03.9]} 43... Kc5 {[%clk 0:00:47.4]} 44. Rc3+ {[%clk 0:00:03.9]}
44... Bc4 {[%clk 0:00:47.7]} 0-1

[Event "Late-Titled-Tuesday-Blitz-February-27-2024"]
[Site "Chess.com"]
[Date "2024.02.27"]
[Round "8"]
[White "wqws"]
[Black "SilverSwords13"]
[Result "1-0"]
[WhiteElo "2695"]
[BlackElo "2492"]
[TimeControl "180+1"]
[EndTime "15:27:02 PST"]
[Termination "wqws won by checkmate"]

1. e4 {[%clk 0:02:53.7]} 1... c5 {[%clk 0:02:59.4]} 2. Nf3 {[%clk 0:02:53.6]}
2... e6 {[%clk 0:02:58.8]} 3. d4 {[%clk 0:02:54]} 3... cxd4 {[%clk 0:02:59.7]}
4. Nxd4 {[%clk 0:02:54.9]} 4... Nc6 {[%clk 0:03:00.2]} 5. Nc3 {[%clk 0:02:55.3]}
5... Qc7 {[%clk 0:03:00]} 6. Be3 {[%clk 0:02:55.5]} 6... a6 {[%clk 0:03:00.4]}
7. Qd2 {[%clk 0:02:55]} 7... Nf6 {[%clk 0:02:59.9]} 8. O-O-O {[%clk 0:02:54.5]}
8... Be7 {[%clk 0:02:53.1]} 9. Kb1 {[%clk 0:02:51.7]} 9... b5 {[%clk 0:02:51.9]}
10. f3 {[%clk 0:02:48.2]} 10... Nxd4 {[%clk 0:02:49.1]} 11. Bxd4 {[%clk
0:02:48.2]} 11... Bb7 {[%clk 0:02:49.9]} 12. g4 {[%clk 0:02:43.6]} 12... Rc8
{[%clk 0:02:47.8]} 13. g5 {[%clk 0:02:31]} 13... Nh5 {[%clk 0:02:46.9]} 14. Bh3
{[%clk 0:02:30.1]} 14... Nf4 {[%clk 0:02:42.2]} 15. Bg4 {[%clk 0:02:30.1]} 15...
Bxg5 {[%clk 0:02:41.7]} 16. Be5 {[%clk 0:02:23.2]} 16... Qxe5 {[%clk 0:02:36.8]}
17. Qxd7+ {[%clk 0:02:23]} 17... Kf8 {[%clk 0:02:37.6]} 18. Qxb7 {[%clk
0:02:23.9]} 18... Qb8 {[%clk 0:02:22.2]} 19. Qxa6 {[%clk 0:02:17.1]} 19... h5
{[%clk 0:02:21]} 20. h4 {[%clk 0:02:16.5]} 20... Bf6 {[%clk 0:02:10.8]} 21. Bh3
{[%clk 0:02:06.3]} 21... Bxc3 {[%clk 0:01:51.2]} 22. bxc3 {[%clk 0:02:05.8]}
22... b4 {[%clk 0:01:44.2]} 23. c4 {[%clk 0:01:56.4]} 23... Rh6 {[%clk
0:01:19.5]} 24. Bf1 {[%clk 0:01:43.3]} 24... e5 {[%clk 0:01:16.4]} 25. Qa5
{[%clk 0:01:29]} 25... Kg8 {[%clk 0:01:07.9]} 26. Rh2 {[%clk 0:01:26.9]} 26...
Rd6 {[%clk 0:00:39.6]} 27. Rhd2 {[%clk 0:01:23.8]} 27... Rxd2 {[%clk 0:00:39.1]}
28. Rxd2 {[%clk 0:01:24.7]} 28... Qb7 {[%clk 0:00:35.2]} 29. c5 {[%clk
0:01:14.2]} 29... Qe7 {[%clk 0:00:33.6]} 30. Qxb4 {[%clk 0:01:03.4]} 30... Qxh4
{[%clk 0:00:32.6]} 31. Rd7 {[%clk 0:00:56.6]} 31... Qf2 {[%clk 0:00:28.4]} 32.
Bc4 {[%clk 0:00:54.7]} 32... Rxc5 {[%clk 0:00:20.2]} 33. Bxf7+ {[%clk
0:00:54.6]} 33... Kh7 {[%clk 0:00:20.1]} 34. Bb3 {[%clk 0:00:54.7]} 34... Ne2
{[%clk 0:00:13.6]} 35. Qd2 {[%clk 0:00:44.5]} 35... Qxf3 {[%clk 0:00:07.8]} 36.
Qg5 {[%clk 0:00:37.6]} 36... Nc3+ {[%clk 0:00:05.1]} 37. Kb2 {[%clk 0:00:37.1]}
37... Qg4 {[%clk 0:00:03.1]} 38. Rxg7+ {[%clk 0:00:35.9]} 38... Kh8 {[%clk
0:00:02.8]} 39. Qh6# {[%clk 0:00:36.8]} 1-0

[Event "Late-Titled-Tuesday-Blitz-February-27-2024"]
[Site "Chess.com"]
[Date "2024.02.27"]
[Round "8"]
[White "Ar4uha"]
[Black "QuintilianoR"]
[Result "1-0"]
[WhiteElo "2611"]
[BlackElo "2739"]
[TimeControl "180+1"]
[EndTime "15:27:06 PST"]
[Termination "Ar4uha won by resignation"]

1. e4 {[%clk 0:02:56.8]} 1... c5 {[%clk 0:02:59.6]} 2. Nf3 {[%clk 0:02:56.6]}
2... d6 {[%clk 0:02:59.6]} 3. Bb5+ {[%clk 0:02:56.8]} 3... Bd7 {[%clk
0:02:59.1]} 4. Bxd7+ {[%clk 0:02:55.8]} 4... Nxd7 {[%clk 0:03:00]} 5. O-O {[%clk
0:02:56.2]} 5... Ngf6 {[%clk 0:02:59.9]} 6. Qe2 {[%clk 0:02:56.2]} 6... e6
{[%clk 0:03:00]} 7. c3 {[%clk 0:02:56.6]} 7... Be7 {[%clk 0:03:00.5]} 8. d4
{[%clk 0:02:57.2]} 8... O-O {[%clk 0:03:01.1]} 9. e5 {[%clk 0:02:49.3]} 9... Ne8
{[%clk 0:03:00.6]} 10. exd6 {[%clk 0:02:47.5]} 10... Nxd6 {[%clk 0:03:01.5]} 11.
dxc5 {[%clk 0:02:44.3]} 11... Nxc5 {[%clk 0:03:02.4]} 12. Bf4 {[%clk 0:02:43.9]}
12... Qb6 {[%clk 0:02:46.6]} 13. Na3 {[%clk 0:02:43.6]} 13... Rad8 {[%clk
0:02:44.9]} 14. Rfd1 {[%clk 0:02:42.8]} 14... Nf5 {[%clk 0:02:42.5]} 15. Ne5
{[%clk 0:02:36.7]} 15... Rxd1+ {[%clk 0:02:34.8]} 16. Rxd1 {[%clk 0:02:36.1]}
16... Rd8 {[%clk 0:02:35.7]} 17. Rxd8+ {[%clk 0:02:35.6]} 17... Qxd8 {[%clk
0:02:35]} 18. Nac4 {[%clk 0:02:31]} 18... Nd7 {[%clk 0:02:28.1]} 19. g4 {[%clk
0:02:05.6]} 19... Nxe5 {[%clk 0:02:22]} 20. Nxe5 {[%clk 0:02:05.7]} 20... Nh4
{[%clk 0:02:20.3]} 21. Bg3 {[%clk 0:02:04.6]} 21... Ng6 {[%clk 0:02:18.4]} 22.
Qd3 {[%clk 0:01:35.3]} 22... Qxd3 {[%clk 0:02:16]} 23. Nxd3 {[%clk 0:01:36.2]}
23... f6 {[%clk 0:02:13.9]} 24. f4 {[%clk 0:01:35.7]} 24... Kf7 {[%clk
0:02:03.4]} 25. Bf2 {[%clk 0:01:34.4]} 25... a6 {[%clk 0:02:02.1]} 26. Kg2
{[%clk 0:01:34.7]} 26... Nf8 {[%clk 0:02:01.5]} 27. Kf3 {[%clk 0:01:34.7]} 27...
Nd7 {[%clk 0:02:00.5]} 28. Bd4 {[%clk 0:01:30.2]} 28... g6 {[%clk 0:01:57.4]}
29. c4 {[%clk 0:01:28.9]} 29... Bd6 {[%clk 0:01:55.1]} 30. b4 {[%clk 0:01:26]}
30... Bc7 {[%clk 0:01:48.5]} 31. h3 {[%clk 0:01:24.8]} 31... h5 {[%clk
0:01:45.4]} 32. a4 {[%clk 0:01:13.5]} 32... hxg4+ {[%clk 0:01:45]} 33. hxg4
{[%clk 0:01:13.4]} 33... g5 {[%clk 0:01:40.6]} 34. fxg5 {[%clk 0:01:10.3]} 34...
fxg5 {[%clk 0:01:41.5]} 35. Ke4 {[%clk 0:01:06.8]} 35... Bd6 {[%clk 0:01:33]}
36. c5 {[%clk 0:01:04.8]} 36... Bg3 {[%clk 0:01:31.8]} 37. b5 {[%clk 0:01:00.6]}
37... axb5 {[%clk 0:01:32.6]} 38. axb5 {[%clk 0:01:01.5]} 38... Bh2 {[%clk
0:01:30.3]} 39. c6 {[%clk 0:00:43.5]} 39... bxc6 {[%clk 0:01:29.6]} 40. bxc6
{[%clk 0:00:44.4]} 40... Nb8 {[%clk 0:01:29.2]} 41. Be5 {[%clk 0:00:45]} 41...
Nxc6 {[%clk 0:01:27.9]} 42. Bxh2 {[%clk 0:00:44.7]} 42... Ne7 {[%clk 0:01:26.7]}
43. Ne5+ {[%clk 0:00:41.2]} 43... Kf6 {[%clk 0:01:26.5]} 44. Bg1 {[%clk
0:00:40.3]} 44... Nd5 {[%clk 0:01:21.3]} 45. Bd4 {[%clk 0:00:40.2]} 45... Ke7
{[%clk 0:01:21.6]} 46. Nf3 {[%clk 0:00:39.6]} 46... Nb4 {[%clk 0:01:14.4]} 47.
Nxg5 {[%clk 0:00:38.9]} 47... Nc2 {[%clk 0:01:14.4]} 48. Nf3 {[%clk 0:00:37.2]}
48... Kf7 {[%clk 0:01:11.4]} 49. g5 {[%clk 0:00:37.2]} 49... Nb4 {[%clk
0:01:11.6]} 50. Ne5+ {[%clk 0:00:33]} 50... Kg8 {[%clk 0:01:11.9]} 51. g6 {[%clk
0:00:31.5]} 51... Nd5 {[%clk 0:01:11.9]} 52. Nf7 {[%clk 0:00:20.3]} 52... Ne7
{[%clk 0:01:02.4]} 53. Nh6+ {[%clk 0:00:20.1]} 53... Kf8 {[%clk 0:01:02.8]} 54.
g7+ {[%clk 0:00:17.9]} 54... Ke8 {[%clk 0:01:02.2]} 55. Bf6 {[%clk 0:00:18.4]}
1-0

[Event "Late-Titled-Tuesday-Blitz-February-27-2024"]
[Site "Chess.com"]
[Date "2024.02.27"]
[Round "8"]
[White "noblerone"]
[Black "Mikhail_Golubev"]
[Result "0-1"]
[WhiteElo "2462"]
[BlackElo "2631"]
[TimeControl "180+1"]
[EndTime "15:27:08 PST"]
[Termination "Mikhail_Golubev won by resignation"]

1. d4 {[%clk 0:02:43.2]} 1... Nf6 {[%clk 0:02:59.1]} 2. Nf3 {[%clk 0:02:43.1]}
2... d6 {[%clk 0:02:59.3]} 3. Bg5 {[%clk 0:02:43.3]} 3... Nbd7 {[%clk
0:02:58.6]} 4. Nbd2 {[%clk 0:02:43.9]} 4... e5 {[%clk 0:02:58.6]} 5. e3 {[%clk
0:02:43.6]} 5... Be7 {[%clk 0:02:55.7]} 6. Bc4 {[%clk 0:02:43.7]} 6... e4 {[%clk
0:02:52.3]} 7. Ng1 {[%clk 0:02:40.5]} 7... d5 {[%clk 0:02:48]} 8. Bb3 {[%clk
0:02:39.5]} 8... h6 {[%clk 0:02:39.9]} 9. Bxf6 {[%clk 0:02:32.4]} 9... Nxf6
{[%clk 0:02:39.4]} 10. c4 {[%clk 0:02:29.7]} 10... c6 {[%clk 0:02:31.5]} 11. Ne2
{[%clk 0:02:28.8]} 11... O-O {[%clk 0:02:31]} 12. O-O {[%clk 0:02:24.4]} 12...
Bd6 {[%clk 0:02:31.1]} 13. Ng3 {[%clk 0:02:17]} 13... Ng4 {[%clk 0:02:23.7]} 14.
Re1 {[%clk 0:02:13.9]} 14... Qh4 {[%clk 0:01:30.5]} 15. Ndf1 {[%clk 0:02:12.9]}
15... dxc4 {[%clk 0:01:29.7]} 16. Bxc4 {[%clk 0:02:12.1]} 16... Kh8 {[%clk
0:01:25.4]} 17. h3 {[%clk 0:01:42.5]} 17... Nf6 {[%clk 0:01:25.3]} 18. Rc1
{[%clk 0:01:32.3]} 18... Rd8 {[%clk 0:01:22.5]} 19. Qc2 {[%clk 0:01:30.4]} 19...
Rf8 {[%clk 0:01:15.5]} 20. a3 {[%clk 0:01:29.3]} 20... Bd7 {[%clk 0:01:11.7]}
21. Qb3 {[%clk 0:01:28.1]} 21... Bxh3 {[%clk 0:01:00.6]} 22. gxh3 {[%clk
0:01:07.3]} 22... Qxh3 {[%clk 0:01:01.5]} 23. Bxf7 {[%clk 0:01:05.4]} 23... Ng4
{[%clk 0:01:01.3]} 24. Re2 {[%clk 0:00:40.6]} 24... h5 {[%clk 0:00:56.5]} 25.
Qe6 {[%clk 0:00:36.5]} 25... h4 {[%clk 0:00:44.9]} 26. Qxd6 {[%clk 0:00:34.5]}
26... Rxf7 {[%clk 0:00:44.5]} 27. Qe6 {[%clk 0:00:25.8]} 27... hxg3 {[%clk
0:00:36.5]} 28. fxg3 {[%clk 0:00:25.8]} 28... Raf8 {[%clk 0:00:35.8]} 29. Rg2
{[%clk 0:00:14.7]} 29... Rxf1+ {[%clk 0:00:30.2]} 30. Rxf1 {[%clk 0:00:14.2]}
30... Rxf1+ {[%clk 0:00:30.4]} 31. Kxf1 {[%clk 0:00:13.7]} 31... Qh1+ {[%clk
0:00:29.7]} 32. Rg1 {[%clk 0:00:14.3]} 32... Qf3+ {[%clk 0:00:29.5]} 33. Ke1
{[%clk 0:00:14.9]} 33... Qxe3+ {[%clk 0:00:29.1]} 34. Kd1 {[%clk 0:00:12.4]}
34... Qxg1+ {[%clk 0:00:29.7]} 35. Kc2 {[%clk 0:00:12.6]} 35... Qg2+ {[%clk
0:00:27.6]} 36. Kb3 {[%clk 0:00:12]} 36... Qxg3+ {[%clk 0:00:27.5]} 37. Ka2
{[%clk 0:00:11.8]} 37... Qf3 {[%clk 0:00:27.3]} 38. Qe8+ {[%clk 0:00:08.6]}
38... Kh7 {[%clk 0:00:27.6]} 39. Qh5+ {[%clk 0:00:07]} 39... Nh6 {[%clk
0:00:27.5]} 40. Qe8 {[%clk 0:00:06.4]} 40... e3 {[%clk 0:00:27.4]} 0-1

[Event "Late-Titled-Tuesday-Blitz-February-27-2024"]
[Site "Chess.com"]
[Date "2024.02.27"]
[Round "8"]
[White "Malev212"]
[Black "elchacal664"]
[Result "1-0"]
[WhiteElo "2635"]
[BlackElo "2424"]
[TimeControl "180+1"]
[EndTime "15:27:09 PST"]
[Termination "Malev212 won on time"]

1. e4 {[%clk 0:02:51.3]} 1... c5 {[%clk 0:02:54.6]} 2. Nf3 {[%clk 0:02:50.8]}
2... Nc6 {[%clk 0:02:51.8]} 3. d4 {[%clk 0:02:50.4]} 3... cxd4 {[%clk
0:02:51.8]} 4. Nxd4 {[%clk 0:02:50.9]} 4... g6 {[%clk 0:02:44.8]} 5. c4 {[%clk
0:02:49.9]} 5... Bg7 {[%clk 0:02:44.1]} 6. Be3 {[%clk 0:02:49.7]} 6... Nf6
{[%clk 0:02:40.3]} 7. Nc3 {[%clk 0:02:48.8]} 7... O-O {[%clk 0:02:40.4]} 8. Be2
{[%clk 0:02:39]} 8... d6 {[%clk 0:02:40.5]} 9. O-O {[%clk 0:02:37.9]} 9... Bd7
{[%clk 0:02:40.8]} 10. Rc1 {[%clk 0:02:35.8]} 10... Nxd4 {[%clk 0:02:39.8]} 11.
Bxd4 {[%clk 0:02:35.2]} 11... Bc6 {[%clk 0:02:40.1]} 12. f3 {[%clk 0:02:33.8]}
12... a5 {[%clk 0:02:40.3]} 13. b3 {[%clk 0:02:32.5]} 13... Nd7 {[%clk
0:02:40.1]} 14. Be3 {[%clk 0:02:30.9]} 14... Nc5 {[%clk 0:02:38.8]} 15. Qd2
{[%clk 0:02:28.9]} 15... Qb6 {[%clk 0:02:38.8]} 16. Nb5 {[%clk 0:02:28.7]} 16...
Rac8 {[%clk 0:02:14.4]} 17. Kh1 {[%clk 0:02:28.2]} 17... Rfd8 {[%clk 0:02:13.6]}
18. Rfd1 {[%clk 0:02:27.1]} 18... Be5 {[%clk 0:02:05]} 19. Bf1 {[%clk 0:02:26]}
19... e6 {[%clk 0:01:52.5]} 20. Qf2 {[%clk 0:02:22]} 20... Be8 {[%clk 0:01:47]}
21. a3 {[%clk 0:02:11.6]} 21... Bxb5 {[%clk 0:01:41.7]} 22. cxb5 {[%clk
0:02:10.7]} 22... Bb2 {[%clk 0:01:11.3]} 23. Rb1 {[%clk 0:01:15.6]} 23... Bxa3
{[%clk 0:01:07.6]} 24. Bg5 {[%clk 0:01:12.3]} 24... Nd7 {[%clk 0:00:42.6]} 25.
Qh4 {[%clk 0:00:51]} 25... d5 {[%clk 0:00:24.4]} 26. exd5 {[%clk 0:00:45.9]}
26... exd5 {[%clk 0:00:25.3]} 27. Bxd8 {[%clk 0:00:40.4]} 27... Qxd8 {[%clk
0:00:18.9]} 28. Qxd8+ {[%clk 0:00:39]} 28... Rxd8 {[%clk 0:00:19.8]} 29. Rxd5
{[%clk 0:00:38.2]} 29... Kf8 {[%clk 0:00:20.2]} 30. b6 {[%clk 0:00:34.7]} 30...
Ke7 {[%clk 0:00:16.9]} 31. Re1+ {[%clk 0:00:34.3]} 31... Kf8 {[%clk 0:00:16]}
32. Bb5 {[%clk 0:00:33.7]} 32... Bb4 {[%clk 0:00:12.6]} 33. Red1 {[%clk
0:00:32.7]} 33... Nxb6 {[%clk 0:00:11.3]} 34. Rxd8+ {[%clk 0:00:32.2]} 34... Kg7
{[%clk 0:00:12.2]} 35. R8d7 {[%clk 0:00:31.3]} 35... Nxd7 {[%clk 0:00:12]} 36.
Rxd7 {[%clk 0:00:30.4]} 36... b6 {[%clk 0:00:12.9]} 37. Bc4 {[%clk 0:00:30.2]}
37... Bc5 {[%clk 0:00:13.8]} 38. Rxf7+ {[%clk 0:00:29.8]} 38... Kh6 {[%clk
0:00:14.1]} 39. f4 {[%clk 0:00:30]} 1-0

[Event "Late-Titled-Tuesday-Blitz-February-27-2024"]
[Site "Chess.com"]
[Date "2024.02.27"]
[Round "8"]
[White "Vasily85"]
[Black "sotochess"]
[Result "0-1"]
[WhiteElo "2501"]
[BlackElo "2655"]
[TimeControl "180+1"]
[EndTime "15:27:11 PST"]
[Termination "sotochess won on time"]

1. e4 {[%clk 0:03:00.9]} 1... d5 {[%clk 0:02:59.2]} 2. exd5 {[%clk 0:03:00.5]}
2... Qxd5 {[%clk 0:02:58.9]} 3. Nc3 {[%clk 0:03:00.2]} 3... Qa5 {[%clk
0:02:58.4]} 4. d4 {[%clk 0:02:59.3]} 4... Nf6 {[%clk 0:02:58.6]} 5. Nf3 {[%clk
0:02:54.5]} 5... c6 {[%clk 0:02:51]} 6. Bc4 {[%clk 0:02:49.9]} 6... Bg4 {[%clk
0:02:49.8]} 7. h3 {[%clk 0:02:49.5]} 7... Bh5 {[%clk 0:02:44.5]} 8. O-O {[%clk
0:02:43]} 8... Nbd7 {[%clk 0:02:42.6]} 9. Bd2 {[%clk 0:02:37.3]} 9... Qb6 {[%clk
0:02:40.1]} 10. Bb3 {[%clk 0:02:34.3]} 10... Bxf3 {[%clk 0:02:36.7]} 11. Qxf3
{[%clk 0:02:35.2]} 11... Qxd4 {[%clk 0:02:37.2]} 12. Rad1 {[%clk 0:02:26.9]}
12... e6 {[%clk 0:02:30.2]} 13. Bf4 {[%clk 0:02:12.2]} 13... Qb4 {[%clk
0:02:28.2]} 14. a3 {[%clk 0:02:05.3]} 14... Qa5 {[%clk 0:02:25.4]} 15. Bh2
{[%clk 0:01:33.3]} 15... Be7 {[%clk 0:02:21.4]} 16. Ne4 {[%clk 0:01:16.1]} 16...
Nxe4 {[%clk 0:02:12.6]} 17. Qxe4 {[%clk 0:01:17]} 17... Nf6 {[%clk 0:02:11.9]}
18. Qe2 {[%clk 0:01:04.6]} 18... O-O {[%clk 0:02:09.6]} 19. Rd4 {[%clk
0:00:56.7]} 19... Rad8 {[%clk 0:02:04.7]} 20. Be5 {[%clk 0:00:36.8]} 20... Rxd4
{[%clk 0:02:01]} 21. Bxd4 {[%clk 0:00:37.7]} 21... Rd8 {[%clk 0:01:58]} 22. Bc3
{[%clk 0:00:37.7]} 22... Qf5 {[%clk 0:01:43.9]} 23. Rd1 {[%clk 0:00:23.7]} 23...
Nd5 {[%clk 0:01:42.1]} 24. Be5 {[%clk 0:00:21]} 24... Bf6 {[%clk 0:01:32.8]} 25.
Bg3 {[%clk 0:00:06]} 25... h5 {[%clk 0:01:14.8]} 26. c4 {[%clk 0:00:06.5]} 26...
Nb6 {[%clk 0:01:14.3]} 27. Rxd8+ {[%clk 0:00:07.2]} 27... Bxd8 {[%clk
0:01:14.1]} 28. Bc2 {[%clk 0:00:08.1]} 28... Qg5 {[%clk 0:01:10.2]} 29. Qd1
{[%clk 0:00:04.5]} 29... g6 {[%clk 0:01:02.4]} 30. b3 {[%clk 0:00:04.1]} 30...
Qe7 {[%clk 0:00:58.5]} 31. Be4 {[%clk 0:00:03.5]} 31... Qd7 {[%clk 0:00:56.3]}
32. Qe2 {[%clk 0:00:03]} 32... Bf6 {[%clk 0:00:55.7]} 33. a4 {[%clk 0:00:03.4]}
33... Kg7 {[%clk 0:00:53.6]} 34. a5 {[%clk 0:00:03.5]} 34... Nc8 {[%clk
0:00:53.8]} 35. Kh2 {[%clk 0:00:03.4]} 35... Nd6 {[%clk 0:00:53.4]} 36. Qd3
{[%clk 0:00:02.5]} 36... e5 {[%clk 0:00:53.2]} 37. f3 {[%clk 0:00:01.1]} 37...
Qe7 {[%clk 0:00:51.6]} 38. Qe3 {[%clk 0:00:01.1]} 38... Nxe4 {[%clk 0:00:51]}
39. Qxe4 {[%clk 0:00:02]} 39... Qc7 {[%clk 0:00:49.8]} 40. Bf2 {[%clk
0:00:02.2]} 40... Qxa5 {[%clk 0:00:49.1]} 41. Qd3 {[%clk 0:00:02]} 41... Qc7
{[%clk 0:00:48.3]} 42. Bg3 {[%clk 0:00:02.2]} 42... h4 {[%clk 0:00:47.9]} 0-1